bitfinex/quotes_ETHUSD_20240823
["timestamp","ask_amount","ask_price","bid_price","bid_amount"]
[1724428008496,3.72703,2683.2,2681.9,3.72869]
[1724428008497,3.8562497,2683.0,2681.9,3.72869]
[1724428008762,3.8562497,2683.0,2682.0,3.72855]
[1724428008960,3.72732,2682.9,2682.0,3.72855]
[1724428009182,3.8562497,2683.0,2682.0,3.72855]
[1724428009356,3.72732,2682.9,2682.1,3.0]
[1724428009555,0.1289797,2683.0,2682.1,3.0]
[1724428009760,3.72754,2682.8,2682.0,3.0]
[1724428010213,0.1289797,2683.0,2682.0,3.0]
[1724428010537,0.1289797,2683.0,2682.4,3.72791]
[1724428010700,0.1289797,2683.0,2682.5,3.0]
[1724428010907,3.7274,2682.9,2682.0,6.72852]
[1724428011083,3.8562697,2683.0,2682.0,6.72852]
[1724428011084,3.8561997,2683.0,2682.0,3.0]
[1724428011444,0.1289797,2683.0,2682.2,3.72816]
[1724428011645,3.72732,2682.9,2682.3,3.0]
[1724428011981,3.72732,2682.9,2682.1,3.0]
[1724428012278,0.1289797,2683.0,2682.1,3.0]
[1724428012279,3.72785,2682.6,2682.1,3.0]
[1724428012511,3.72751,2682.8,2681.8,2.4719]
[1724428012714,0.1289797,2683.0,2681.9,6.05671524]
[1724428012876,0.1289797,2683.0,2682.0,3.0]
[1724428012877,3.8561697,2683.0,2682.0,3.0]
[1724428013177,3.8561697,2683.0,2682.0,6.72846]
[1724428013673,3.8561697,2683.0,2682.0,6.72845]
[1724428013880,0.1289797,2683.0,2682.2,3.72816]
[1724428014180,0.1289797,2683.0,2682.4,3.72798]
[1724428014387,0.1289797,2683.0,2682.3,3.0]
[1724428014594,3.8562697,2683.0,2682.4,0.07453903]
[1724428014944,0.1289797,2683.0,2682.4,0.07453875]
[1724428015118,0.1289797,2683.0,2682.2,3.0]
[1724428015319,3.72742,2682.9,2682.2,3.0]
[1724428015814,3.72742,2682.9,2681.9,3.72859]
[1724428015815,3.72742,2682.9,2682.0,3.0]
[1724428015980,3.7274,2682.9,2682.0,3.0]
[1724428016381,0.1289797,2683.0,2682.1,3.72834]
[1724428016581,0.1289797,2683.0,2682.4,3.72795]
[1724428016985,0.1289797,2683.0,2682.2,6.72817]
[1724428018083,0.0789797,2683.0,2682.2,6.72817]
[1724428018285,0.0789797,2683.0,2682.2,10.45636]
[1724428018487,0.0789797,2683.0,2682.2,6.72817]
[1724428019230,3.8061497,2683.0,2682.2,6.72817]
[1724428019389,0.0789797,2683.0,2682.2,3.0]
[1724428019593,0.0789797,2683.0,2682.0,3.0]
[1724428019796,0.0789797,2683.0,2682.1,3.8029316]
[1724428020113,0.0789797,2683.0,2682.2,3.0]
[1724428020301,0.0789797,2683.0,2682.2,6.72827]
[1724428020500,0.0789797,2683.0,2682.3,3.72805]
[1724428020715,3.72739,2682.9,2682.4,3.0]
[1724428020916,3.72739,2682.9,2682.2,3.0]
[1724428020917,7.45482,2682.9,2682.2,3.0]
[1724428021116,7.45482,2682.9,2681.9,9.71076633]
[1724428021117,3.72739,2682.9,2682.1,6.72838]
[1724428021334,3.8061697,2683.0,2682.1,6.72832]
[1724428021541,0.0789797,2683.0,2682.2,3.72824]
[1724428021737,0.0789797,2683.0,2682.1,6.72832]
[1724428021738,0.00718888,2683.0,2682.5,3.72776]
[1724428021937,3.73442888,2683.0,2682.3,3.0]
[1724428022138,0.00718888,2683.0,2682.2,3.0]
[1724428022344,3.72745,2682.8,2682.1,5.3649]
[1724428022539,3.72745,2682.8,2682.2,3.0]
[1724428022766,3.73442888,2683.0,2682.1,2.3649]
[1724428022978,3.73442888,2683.0,2682.1,6.09328]
[1724428022979,0.00718888,2683.0,2682.1,6.09328]
[1724428023186,0.00718888,2683.0,2682.2,3.0]
[1724428023470,3.7274,2682.9,2682.2,3.0]
[1724428023629,3.73443888,2683.0,2682.2,3.0]
[1724428024641,7.46169888,2683.0,2682.2,3.0]
[1724428024844,7.46168888,2683.0,2682.2,3.0]
[1724428025070,3.72733,2682.9,2682.2,3.0]
[1724428025242,3.72766,2682.7,2682.2,3.0]
[1724428025457,3.72766,2682.7,2681.9,6.72868]
[1724428025672,3.7288,2681.9,2681.2,2.4758]
[1724428025887,3.72907,2681.7,2680.8,6.20594]
[1724428026045,3.72922,2681.6,2680.8,2.4758]
[1724428026227,3.7297,2681.2,2680.3,9.71297633]
[1724428026428,3.73008,2681.0,2680.3,2.2688]
[1724428026689,2.2781,2681.3,2680.3,5.99959]
[1724428026885,3.7295,2681.4,2680.3,5.99959]
[1724428027095,3.72914,2681.6,2680.7,3.73027]
[1724428027254,5.99147,2681.8,2680.6,3.73041]
[1724428027450,3.72941,2681.4,2680.4,3.73069]
[1724428027772,3.72941,2681.4,2680.6,3.7305]
[1724428027924,3.72926,2681.5,2680.6,3.7305]
[1724428028344,3.72915,2681.6,2680.6,3.7305]
[1724428028545,3.72915,2681.6,2680.7,3.73033]
[1724428028883,3.72915,2681.6,2680.4,3.73074]
[1724428028884,3.72949,2681.4,2680.4,3.73074]
[1724428029081,3.72949,2681.4,2680.6,3.73048]
[1724428029243,3.73004,2681.0,2680.3,2.2688]
[1724428029771,2.2626,2681.8,2680.3,2.2688]
[1724428029772,7.45894,2681.4,2680.3,2.2688]
[1724428029964,3.72946,2681.4,2680.4,3.73073]
[1724428030580,3.72992,2681.1,2680.5,3.0]
[1724428030782,3.73009,2680.9,2679.9,2.4906]
[1724428030954,3.73039,2680.7,2679.9,2.4906]
[1724428031567,3.73009,2680.9,2679.8,4.11948448]
[1724428031879,2.3172,2681.0,2679.8,0.38790448]
[1724428032181,3.73046,2680.7,2679.7,3.73174]
[1724428032383,10.18203,2680.9,2679.9,3.73146]
[1724428032546,6.22013,2680.9,2679.9,3.73138]
[1724428032751,6.22013,2680.9,2680.1,3.73119]
[1724428032948,6.22013,2680.9,2680.2,0.07460619]
[1724428033151,7.446848,2680.9,2679.9,2.3421]
[1724428033386,3.73088,2680.4,2679.8,3.0]
[1724428033684,3.716718,2680.9,2679.3,6.15325]
[1724428033884,3.73115,2680.2,2679.3,6.15325]
[1724428034061,3.73115,2680.2,2679.1,3.73257]
[1724428034062,3.73142,2680.0,2679.1,3.73257]
[1724428034780,2.3447,2680.3,2679.4,3.73208]
[1724428034985,2.3447,2680.3,2679.1,0.38785164]
[1724428034986,6.10468,2680.7,2679.7,3.73165]
[1724428035185,2.3743,2680.7,2679.8,3.73159]
[1724428035387,3.73048,2680.7,2679.7,3.73166]
[1724428035547,3.73052,2680.6,2679.6,3.7318]
[1724428035755,6.10496,2680.5,2679.7,3.0]
[1724428036118,3.73089,2680.4,2679.7,3.0]
[1724428036419,3.73095,2680.3,2679.5,3.0]
[1724428036709,6.10499,2680.5,2679.6,0.074622]
[1724428036888,2.3743,2680.5,2679.7,3.73166]
[1724428037081,2.3743,2680.5,2679.8,6.73149]
[1724428037279,2.3743,2680.5,2679.8,3.73149]
[1724428037702,3.73036,2680.7,2679.8,3.73149]
[1724428038215,7.46084,2680.7,2679.8,3.73149]
[1724428038415,3.73036,2680.7,2679.6,6.73179]
[1724428038612,2.4214,2680.4,2679.6,3.0]
[1724428038759,2.4214,2680.4,2679.5,3.0]
[1724428038968,2.4214,2680.4,2679.2,3.73239]
[1724428038969,3.7312,2680.1,2679.3,3.0]
[1724428039384,3.7312,2680.1,2679.0,6.1826]
[1724428039803,3.73099,2680.3,2679.5,3.73195]
[1724428039977,3.73099,2680.3,2679.0,2.52452842]
[1724428039978,3.73099,2680.3,2679.4,3.73207]
[1724428040604,3.73129,2680.1,2679.5,3.0]
[1724428040799,3.73099,2680.3,2679.4,3.73216]
[1724428041022,3.73099,2680.3,2679.5,3.0]
[1724428041226,3.73128,2680.1,2679.5,3.0]
[1724428041437,3.73138,2680.0,2679.3,3.0]
[1724428041743,3.73148,2679.9,2679.1,7.12044164]
[1724428041900,3.73148,2679.9,2679.1,4.12044164]
[1724428042237,7.46281,2680.0,2679.1,3.73251]
[1724428042532,6.15224,2680.4,2678.8,2.53293572]
[1724428042533,3.73184,2679.7,2678.9,3.73281]
[1724428042917,3.73212,2679.5,2678.5,7.46669]
[1724428043146,3.73212,2679.5,2678.5,7.46667]
[1724428043147,3.73218,2679.4,2678.5,7.46667]
[1724428043299,3.73212,2679.5,2678.5,3.73332]
[1724428043300,2.49,2679.0,2678.5,3.73332]
[1724428043500,1.71109158,2679.0,2678.9,3.73287]
[1724428043712,0.32642017,2679.0,2678.9,3.73287]
[1724428044229,0.32642017,2679.0,2678.9,7.46574]
[1724428044430,0.08160504,2679.0,2678.9,7.46574]
[1724428044604,2.2835,2680.1,2679.2,3.73242]
[1724428044946,2.2835,2680.1,2679.2,3.73237]
[1724428045086,2.2835,2680.1,2679.4,3.73209]
[1724428045282,2.2835,2680.1,2679.5,3.73201]
[1724428045530,2.2835,2680.1,2679.3,3.0]
[1724428045531,2.2835,2680.1,2679.3,6.7322]
[1724428045702,2.2835,2680.1,2679.4,3.73215]
[1724428045899,2.2835,2680.1,2679.5,3.0]
[1724428045900,6.01472,2680.1,2679.5,3.0]
[1724428046099,2.2835,2680.1,2679.4,3.73217]
[1724428046340,3.73153,2679.9,2679.5,3.0]
[1724428046621,3.7317,2679.8,2679.3,3.0]
[1724428046827,3.7317,2679.8,2679.1,3.0]
[1724428047024,3.73185,2679.7,2679.1,3.0]
[1724428047198,3.7317,2679.8,2679.0,6.73265]
[1724428047598,3.7317,2679.8,2679.0,10.4653]
[1724428047806,3.7317,2679.8,2679.0,6.73265]
[1724428048020,3.7317,2679.8,2679.0,10.46529]
[1724428048312,3.73144,2680.0,2679.0,6.73266]
[1724428048816,3.73166,2679.8,2679.0,6.73266]
[1724428049013,2.4893,2679.7,2679.0,3.0]
[1724428049187,2.4893,2680.0,2679.3,3.7323]
[1724428049902,6.22065,2680.0,2679.1,3.73256]
[1724428050086,3.73158,2679.9,2679.2,3.0]
[1724428050292,9.95211,2680.0,2679.1,6.73249]
[1724428050499,6.22065,2680.0,2679.1,6.73249]
[1724428050824,6.22065,2680.0,2679.2,3.73244]
[1724428051017,9.95208,2680.0,2679.2,3.73244]
[1724428051187,6.22065,2680.0,2679.2,3.73244]
[1724428051392,2.4893,2680.0,2679.3,3.73224]
[1724428051600,3.73156,2679.9,2679.1,3.0]
[1724428051821,3.73164,2679.8,2679.1,3.0]
[1724428052328,3.73219,2679.4,2679.0,3.0]
[1724428052529,3.73183,2679.7,2679.0,3.0]
[1724428052916,2.4893,2680.0,2679.2,3.73245]
[1724428053090,2.4893,2680.0,2679.4,3.73217]
[1724428053295,6.11329,2680.4,2679.5,0.07462883]
[1724428053491,2.3824,2680.4,2679.5,3.0]
[1724428053703,2.3824,2680.4,2678.9,5.51525076]
[1724428053704,2.3824,2680.4,2679.3,3.0]
[1724428053904,2.3824,2680.4,2678.9,7.82125076]
[1724428053905,3.73156,2679.9,2679.0,3.0]
[1724428054125,3.73156,2679.9,2679.0,6.73263]
[1724428054126,2.3824,2679.8,2679.0,6.73263]
[1724428054501,3.73177,2679.7,2679.0,6.73263]
[1724428054701,2.3824,2679.8,2679.0,6.73262]
[1724428054909,6.11409,2679.8,2679.0,6.73262]
[1724428055116,3.73176,2679.7,2679.0,3.0]
[1724428055645,2.44,2679.2,2678.8,7.49]
[1724428055943,2.44,2679.2,2678.7,0.3879629]
[1724428055944,3.73275,2679.0,2678.7,0.3879629]
[1724428056144,3.73275,2679.0,2678.1,13.54965]
[1724428056308,3.73275,2679.0,2678.2,0.38799327]
[1724428056851,6.17251,2679.2,2678.2,0.38799327]
[1724428057003,6.17251,2679.2,2678.3,3.73359]
[1724428057203,10.895552,2679.2,2678.3,3.73359]
[1724428057449,7.162982,2679.2,2678.3,3.73359]
[1724428057943,10.895572,2679.2,2678.3,3.73359]
[1724428058129,3.7327,2679.1,2678.2,4.12172327]
[1724428058334,7.162982,2679.2,2678.3,6.7337]
[1724428058507,2.44,2679.2,2678.3,3.0]
[1724428058710,2.44,2679.2,2678.5,3.73337]
[1724428058914,2.2947,2679.5,2678.7,3.73313]
[1724428059139,2.2947,2679.5,2678.8,0.07465011]
[1724428059347,6.02683,2679.5,2678.7,3.73313]
[1724428059654,3.73218,2679.4,2678.5,3.73333]
[1724428059821,3.73218,2679.4,2678.3,11.22363]
[1724428059822,2.2947,2679.5,2678.8,3.73289]
[1724428060515,2.2947,2679.5,2678.7,3.73315]
[1724428060715,2.2947,2679.8,2679.0,3.73265]
[1724428061021,2.2947,2679.8,2679.1,3.0746381]
[1724428061220,2.2947,2679.8,2679.2,0.07463841]
[1724428061420,2.2947,2679.8,2679.1,3.7325]
[1724428061647,2.2947,2679.8,2679.0,3.0]
[1724428062349,3.7319,2679.6,2679.0,3.0]
[1724428062526,3.7319,2679.6,2678.8,3.0]
[1724428062751,2.2947,2679.8,2679.0,3.73269]
[1724428062960,2.2947,2679.8,2679.1,3.0]
[1724428063368,2.2947,2679.8,2679.1,6.7325]
[1724428063715,6.2251,2680.3,2679.3,2.4196]
[1724428063837,2.4941,2680.3,2679.5,3.73196]
[1724428064033,6.22451,2680.7,2679.8,3.73161]
[1724428064291,2.4941,2680.7,2680.3,0.32038849]
[1724428064438,6.18623,2681.0,2680.4,0.07460727]
[1724428064633,6.18623,2681.0,2680.2,3.73096]
[1724428064634,2.4562,2681.0,2680.2,3.73096]
[1724428064839,3.72981,2681.1,2680.2,3.73096]
[1724428065061,0.618601,2681.0,2680.1,3.0]
[1724428065381,2.4915,2680.9,2680.1,3.0]
[1724428065675,3.73047,2680.7,2679.8,3.73151]
[1724428065877,3.73047,2680.7,2679.9,3.0]
[1724428066201,2.4915,2680.9,2679.9,3.0]
[1724428066413,6.843768,2680.9,2680.0,3.73121]
[1724428066675,3.113638,2680.9,2680.1,3.0]
[1724428066848,3.113638,2680.9,2680.1,6.73109]
[1724428067054,6.843738,2680.9,2680.1,3.0]
[1724428067440,3.7306,2680.6,2680.1,3.0]
[1724428067640,4.476687,2680.6,2680.1,3.0]
[1724428067978,4.476687,2680.6,2679.9,3.0]
[1724428068645,4.476687,2680.6,2679.9,6.73137]
[1724428068646,0.746087,2680.6,2679.9,6.73137]
[1724428068985,7.46062,2680.8,2679.9,6.73137]
[1724428069170,3.73027,2680.8,2679.9,6.73137]
[1724428069475,3.73027,2680.8,2680.0,7.4626]
[1724428069776,3.73027,2680.8,2680.1,3.0]
[1724428071039,3.113638,2680.9,2680.2,3.73097]
[1724428071235,9.92579,2681.2,2680.3,3.73091]
[1724428071474,3.72982,2681.1,2680.3,3.73091]
[1724428071683,6.19601,2681.2,2680.3,3.73091]
[1724428071855,6.19601,2681.2,2680.3,3.73082]
[1724428072051,6.19601,2681.2,2680.1,3.0]
[1724428072052,3.72945,2681.4,2680.5,3.73057]
[1724428072264,3.72945,2681.4,2680.5,3.73056]
[1724428072465,3.72945,2681.4,2680.6,3.0]
[1724428072650,6.08179,2681.6,2680.8,3.7302]
[1724428072978,3.7294,2681.4,2680.6,3.0]
[1724428073278,3.72961,2681.3,2680.6,3.0]
[1724428073461,4.475504,2681.3,2680.6,3.0]
[1724428073661,3.72969,2681.2,2680.6,3.0]
[1724428073891,4.475504,2681.3,2680.4,9.12804]
[1724428074056,4.475504,2681.3,2680.5,3.73062]
[1724428074373,4.475504,2681.3,2680.6,3.0]
[1724428074754,0.4475504,2681.2,2680.6,3.0]
[1724428074955,0.4475504,2681.2,2680.5,6.73064]
[1724428075153,3.72981,2681.1,2680.5,3.0]
[1724428075337,3.72981,2681.1,2680.4,3.0]
[1724428075542,3.73016,2680.9,2680.2,3.0]
[1724428075802,3.73024,2680.8,2680.2,3.0]
[1724428075997,4.348936,2680.9,2680.1,3.0]
[1724428075998,0.618776,2680.9,2680.1,3.0]
[1724428076138,2.3515,2681.6,2680.1,3.0]
[1724428076338,7.45923,2681.3,2680.5,3.73055]
[1724428076594,3.72992,2681.1,2680.3,3.73084]
[1724428076887,3.72992,2681.1,2680.2,3.73106]
[1724428077180,3.72962,2681.3,2680.3,3.0]
[1724428077345,0.372962,2681.2,2680.3,3.7309]
[1724428077539,3.72962,2681.3,2680.3,3.7309]
[1724428077755,3.72962,2681.3,2680.1,6.73112]
[1724428077756,3.72959,2681.3,2680.1,6.73112]
[1724428077956,3.7299,2681.1,2680.3,7.46176]
[1724428078154,3.7299,2681.1,2680.3,3.73084]
[1724428078873,3.72961,2681.3,2680.3,3.73084]
[1724428079045,3.72961,2681.3,2680.5,3.73064]
[1724428079046,7.832181,2681.3,2680.5,3.73064]
[1724428079386,4.102571,2681.3,2680.5,3.73064]
[1724428079551,2.3515,2681.6,2680.7,3.73036]
[1724428080056,2.3515,2681.6,2680.7,3.73028]
[1724428080257,3.72928,2681.5,2680.7,3.73028]
[1724428080460,7.45865,2681.5,2680.7,3.73028]
[1724428080783,3.72943,2681.4,2680.7,3.73028]
[1724428080948,3.72928,2681.5,2680.7,3.73028]
[1724428081294,6.15561,2682.1,2681.3,3.72945]
[1724428081450,6.15561,2682.1,2681.2,6.03484]
[1724428081650,3.72822,2682.3,2681.2,6.03484]
[1724428081651,3.72839,2682.2,2681.3,3.72943]
[1724428081846,6.15451,2682.9,2682.0,3.72845]
[1724428082062,3.72783,2682.6,2681.9,5.50716102]
[1724428082261,3.72788,2682.5,2682.2,0.58469225]
[1724428082587,3.72767,2682.7,2682.2,0.58469225]
[1724428082755,3.72746,2682.8,2682.2,0.58469225]
[1724428082959,0.00718888,2683.0,2682.2,2.96719225]
[1724428083646,3.72741,2682.9,2682.3,3.0]
[1724428083849,2.4343,2682.9,2682.2,0.58469225]
[1724428084148,3.7276,2682.7,2682.2,0.58469225]
[1724428084390,0.00718888,2683.0,2682.2,0.58469225]
[1724428084577,3.73437888,2683.0,2682.2,3.00469225]
[1724428084781,0.37343789,2682.9,2682.2,3.00469225]
[1724428085087,3.72754,2682.8,2682.2,0.58469225]
[1724428085546,3.72777,2682.6,2682.2,0.58469225]
[1724428085946,3.72754,2682.8,2682.2,0.58469225]
[1724428086187,3.72784,2682.6,2682.2,0.58469225]
[1724428086491,3.72811,2682.4,2682.2,0.58469225]
[1724428086691,3.129433,2682.6,2682.2,0.58469225]
[1724428086692,6.11163,2682.6,2682.2,0.58469225]
[1724428086899,2.3839,2682.6,2682.2,0.58469225]
[1724428087075,3.7281,2682.4,2682.2,0.58469225]
[1724428087287,2.3839,2682.6,2682.2,0.58469225]
[1724428087288,7.45628,2682.3,2682.2,0.58469225]
[1724428087594,8.201908,2682.3,2682.2,0.58469225]
[1724428087772,0.745628,2682.3,2682.2,0.58469225]
[1724428088113,0.745628,2682.3,2681.4,6.20177]
[1724428088114,3.72814,2682.3,2681.4,6.20177]
[1724428088265,3.72789,2682.5,2681.5,3.72923]
[1724428088850,3.72789,2682.5,2681.4,6.20177]
[1724428089050,3.728,2682.4,2681.4,6.20177]
[1724428089303,3.72789,2682.5,2681.6,3.72911]
[1724428089608,3.72789,2682.5,2681.4,6.20177]
[1724428089609,3.72817,2682.3,2681.4,2.4724]
[1724428089919,3.72817,2682.3,2681.4,5.4724]
[1724428090425,0.00718888,2683.0,2682.1,11.66235102]
[1724428090614,3.72733,2682.9,2682.1,7.93396102]
[1724428090906,0.00718888,2683.0,2682.2,3.0]
[1724428090907,3.72747,2682.8,2682.2,3.0]
[1724428091103,3.72747,2682.8,2682.1,2.4268]
[1724428091307,0.00718888,2683.0,2682.1,2.4268]
[1724428091453,0.00718888,2683.0,2682.2,0.07454765]
[1724428091657,3.73438888,2683.0,2682.2,3.0]
[1724428092006,3.72734,2682.9,2682.2,3.0]
[1724428092147,3.72759,2682.7,2682.1,5.4268]
[1724428092352,3.72777,2682.6,2681.8,5.4647]
[1724428092618,0.745493,2682.7,2681.8,9.19353]
[1724428093050,0.745493,2682.7,2681.9,3.72869]
[1724428093404,0.745493,2682.7,2682.0,3.0]
[1724428093787,3.72745,2682.8,2681.9,6.72869]
[1724428094001,3.73436888,2683.0,2682.0,3.72855]
[1724428094314,3.73436888,2683.0,2681.9,3.0]
[1724428094315,0.00718888,2683.0,2682.1,3.7283]
[1724428094605,0.00718888,2683.0,2682.2,3.0]
[1724428095004,0.00718888,2683.0,2682.4,2.4058]
[1724428095291,0.00718888,2683.0,2682.5,3.72774]
[1724428095463,0.00718888,2683.0,2682.6,3.80223894]
[1724428095669,0.00718888,2683.0,2682.6,3.72772]
[1724428096077,0.00718888,2683.0,2682.7,3.0]
[1724428096857,0.00718888,2683.0,2682.5,3.0]
[1724428097055,0.00718888,2683.0,2682.5,6.72785]
[1724428097962,2.3189,2682.9,2682.5,3.0]
[1724428098318,0.00718888,2683.0,2682.2,5.98987]
[1724428098617,3.73437888,2683.0,2682.3,3.0]
[1724428098903,3.72734,2682.9,2682.0,3.72855]
[1724428099073,0.74617189,2682.8,2682.1,3.72833]
[1724428099259,0.00718888,2683.0,2682.7,5.50716102]
[1724428099580,0.00718888,2683.0,2682.7,9.23464102]
[1724428099802,0.00718888,2683.0,2682.5,3.72785]
[1724428099994,0.00718888,2683.0,2682.3,11.61699102]
[1724428100229,0.00718888,2683.0,2682.4,3.72786]
[1724428100412,0.00718888,2683.0,2682.5,3.0]
[1724428101362,0.00718888,2683.0,2682.6,3.72761]
[1724428101579,0.00718888,2683.0,2682.7,6.72757]
[1724428101784,0.00718888,2683.0,2682.9,3.72731]
[1724428102055,0.00718888,2683.0,2682.9,6.72731]
[1724428102272,0.00718888,2683.0,2682.9,3.0]
[1724428102655,0.00718888,2683.0,2682.9,6.11391]
[1724428102990,0.00718888,2683.0,2682.9,9.18843706]
[1724428103697,0.00718888,2683.0,2682.9,9.11391]
[1724428103900,0.00718888,2683.0,2682.9,3.0]
[1724428104067,0.00718888,2683.0,2682.8,3.0]
[1724428104665,0.00718888,2683.0,2682.8,6.72744]
[1724428105067,0.00718888,2683.0,2682.8,3.0]
[1724428105295,0.00718888,2683.0,2682.6,3.0]
[1724428105511,0.00718888,2683.0,2682.5,3.0]
[1724428105812,0.00718888,2683.0,2682.3,6.72813]
[1724428106294,0.00718888,2683.0,2682.4,3.72799]
[1724428106524,0.00718888,2683.0,2682.5,3.0]
[1724428106795,0.00718888,2683.0,2682.4,6.72798]
[1724428106996,0.00718888,2683.0,2682.7,3.72749]
[1724428107299,0.00718888,2683.0,2682.7,3.72754]
[1724428107809,0.00718888,2683.0,2682.5,3.72782]
[1724428108011,0.00718888,2683.0,2682.6,3.0]
[1724428108215,0.00718888,2683.0,2682.7,5.50716102]
[1724428108412,0.00718888,2683.0,2682.8,3.0]
[1724428109176,0.00718888,2683.0,2682.4,3.0]
[1724428109579,2.41388888,2683.0,2682.4,3.0]
[1724428110076,0.00718888,2683.0,2682.7,3.72756]
[1724428110282,0.00718888,2683.0,2682.8,3.0]
[1724428111296,0.00718888,2683.0,2682.6,6.7277]
[1724428111706,0.00718888,2683.0,2682.6,3.0]
[1724428112643,0.00718888,2683.0,2682.3,11.68764102]
[1724428112644,0.00718888,2683.0,2682.4,6.72799]
[1724428113007,0.00718888,2683.0,2682.6,3.72771]
[1724428113309,0.00718888,2683.0,2682.7,3.0]
[1724428113710,0.00718888,2683.0,2682.6,3.0]
[1724428114116,0.00718888,2683.0,2682.4,3.0]
[1724428114284,3.72731,2682.9,2682.1,11.21838]
[1724428114489,3.72731,2682.9,2681.9,9.23580102]
[1724428114490,0.25412777,2683.0,2682.3,3.7281]
[1724428114795,0.25412777,2683.0,2682.3,3.72802]
[1724428114991,0.00718888,2683.0,2682.5,3.72783]
[1724428115923,0.00718888,2683.0,2682.3,7.45611]
[1724428116118,0.00718888,2683.0,2682.4,3.0]
[1724428116494,3.73436888,2683.0,2682.0,3.0]
[1724428116699,3.73436888,2683.0,2682.1,3.72828]
[1724428116885,8.45399977,2683.0,2682.2,3.0]
[1724428117082,0.00718888,2683.0,2682.3,2.355]
[1724428117283,0.00718888,2683.0,2682.5,3.72774]
[1724428117517,0.00718888,2683.0,2682.6,3.0]
[1724428117903,0.00718888,2683.0,2682.4,2.99]
[1724428118309,0.00718888,2683.0,2682.4,6.71789]
[1724428118509,0.00718888,2683.0,2682.4,2.99]
[1724428118510,0.62681777,2683.0,2682.4,2.99]
[1724428118708,0.62681777,2683.0,2682.3,3.72811]
[1724428119129,0.62681777,2683.0,2682.3,7.45617]
[1724428119330,0.62681777,2683.0,2682.3,3.72806]
[1724428119650,4.35409777,2683.0,2682.1,3.72829]
[1724428119848,0.80812178,2682.9,2682.1,3.72829]
[1724428120054,0.80812178,2682.9,2682.2,6.7282]
[1724428120762,0.80812178,2682.9,2682.3,3.7281]
[1724428120943,0.00718888,2683.0,2682.4,3.0]
[1724428121144,0.00718888,2683.0,2682.5,3.72778]
[1724428121705,2.4005,2682.9,2682.4,3.0]
[1724428121967,2.4005,2682.9,2682.3,3.0]
[1724428122370,3.72747,2682.8,2682.3,3.0]
[1724428122680,0.985529,2682.7,2682.1,3.0]
[1724428122868,0.985529,2682.7,2681.7,2.81995538]
[1724428122869,3.72788,2682.5,2681.7,4.11665538]
[1724428123047,2.372,2682.6,2681.8,3.7288]
[1724428123211,2.372,2682.6,2681.9,3.72864]
[1724428123413,2.372,2682.6,2682.0,3.72853]
[1724428123717,0.609969,2682.5,2682.0,3.72853]
[1724428123937,2.372,2682.6,2682.0,3.72853]
[1724428124121,2.372,2682.6,2681.7,3.38775538]
[1724428124607,2.372,2682.6,2682.1,4.12795489]
[1724428124808,2.372,2682.6,2682.2,3.0]
[1724428125452,2.369,2682.9,2682.2,3.0]
[1724428125634,2.97932989,2682.9,2682.3,3.80260296]
[1724428126135,2.97932989,2682.9,2682.2,3.0]
[1724428126887,2.97932989,2682.9,2682.3,0.07455125]
[1724428127096,2.97932989,2682.9,2682.2,6.72826]
[1724428127301,6.70663989,2682.9,2682.2,3.0]
[1724428127500,3.72758,2682.7,2682.2,3.0]
[1724428127668,3.72758,2682.7,2682.0,3.0]
[1724428127863,3.72774,2682.6,2682.0,3.0]
[1724428128045,3.72773,2682.6,2682.0,3.0]
[1724428128258,0.745531,2682.5,2681.8,3.0]
[1724428128544,0.745531,2682.5,2681.8,6.72882]
[1724428128944,0.745531,2682.5,2681.8,3.0]
[1724428128945,3.72795,2682.5,2681.8,3.0]
[1724428129405,3.72795,2682.5,2681.7,6.72886]
[1724428130000,3.72795,2682.5,2681.7,3.0]
[1724428130001,3.72802,2682.4,2681.7,3.0]
[1724428130281,3.72795,2682.5,2681.7,3.0]
[1724428130447,0.616775,2682.4,2681.7,10.45774]
[1724428130646,0.616775,2682.4,2681.7,6.72886]
[1724428131481,0.616775,2682.4,2681.7,3.0]
[1724428131692,0.616775,2682.4,2681.7,6.72887]
[1724428132247,0.616775,2682.4,2681.7,10.45776]
[1724428132449,0.4344725,2682.3,2681.7,10.45776]
[1724428132678,0.4344725,2682.3,2681.8,3.72882]
[1724428132872,0.616775,2682.4,2682.0,3.72845]
[1724428133183,2.4398,2682.6,2682.0,3.72845]
[1724428133561,6.16764,2682.6,2681.7,3.0]
[1724428133760,6.16764,2682.6,2681.8,3.72883]
[1724428133981,6.16764,2682.6,2681.9,3.0]
[1724428134230,3.72787,2682.5,2681.9,3.0]
[1724428134391,0.989551,2682.4,2681.8,3.72882]
[1724428134895,0.989551,2682.4,2681.8,4.12795489]
[1724428135095,2.4398,2682.6,2682.0,3.72848]
[1724428135672,2.26448888,2683.0,2682.3,3.72814]
[1724428135873,2.26448888,2683.0,2682.4,3.72791]
[1724428136124,0.00718888,2683.0,2682.5,3.80240349]
[1724428136421,0.00718888,2683.0,2682.8,3.72743]
[1724428136562,0.00718888,2683.0,2682.9,10.45462]
[1724428137007,0.00718888,2683.0,2682.9,6.72731]
[1724428138398,0.00718888,2683.0,2682.9,3.0]
[1724428138724,0.00718888,2683.0,2682.9,6.72731]
[1724428140320,0.00718888,2683.0,2682.9,3.07453042]
[1724428140539,0.00718888,2683.0,2682.9,12.91975042]
[1724428140675,0.00718888,2683.0,2682.9,12.84522]
[1724428142085,0.00718888,2683.0,2682.9,6.72731]